bitfinex/quotes_BTCUSD_20250902
["timestamp","ask_amount","ask_price","bid_price","bid_amount"]
[1756836410149,0.003,110740.0,110730.0,1.59500325]
[1756836412652,0.003,110740.0,110730.0,1.58090398]
[1756836413440,0.003,110740.0,110730.0,1.54853286]
[1756836413849,0.003,110740.0,110730.0,1.59003063]
[1756836414055,0.003,110740.0,110730.0,1.64003063]
[1756836414261,0.003,110740.0,110730.0,1.65610891]
[1756836414467,0.003,110740.0,110730.0,0.98869179]
[1756836414672,0.003,110740.0,110730.0,1.65610891]
[1756836415089,0.003,110740.0,110730.0,1.49622891]
[1756836415366,0.003,110740.0,110730.0,1.65578891]
[1756836415803,0.002,110740.0,110730.0,1.65078891]
[1756836416015,0.003,110740.0,110730.0,1.49622891]
[1756836416417,0.003,110740.0,110730.0,1.59101141]
[1756836416626,0.003,110740.0,110730.0,1.65587903]
[1756836417220,0.003,110740.0,110730.0,2.05587903]
[1756836417425,0.003,110740.0,110730.0,1.99101141]
[1756836417586,0.001,110740.0,110730.0,1.7503117]
[1756836417987,0.002,110740.0,110730.0,1.7523117]
[1756836419864,0.002,110740.0,110730.0,1.88314229]
[1756836420885,0.25713431,110780.0,110770.0,0.1805543]
[1756836421102,0.25713431,110780.0,110770.0,0.45898261]
[1756836421320,0.07873631,110780.0,110770.0,0.45672569]
[1756836421539,0.00214,110780.0,110770.0,0.92274145]
[1756836421740,0.00214,110780.0,110770.0,0.49197404]
[1756836421741,0.00519,110780.0,110770.0,0.49197404]
[1756836421969,0.185728,110780.0,110770.0,0.49197404]
[1756836422182,0.00314,110780.0,110770.0,0.55498501]
[1756836422388,0.001,110780.0,110770.0,0.39801501]
[1756836422612,0.001,110780.0,110770.0,0.98649242]
[1756836422838,0.001,110780.0,110770.0,1.00843124]
[1756836423037,0.001,110780.0,110770.0,0.97594403]
[1756836424223,0.001,110780.0,110770.0,0.58756659]
[1756836424445,0.001,110780.0,110770.0,0.46026087]
[1756836424671,0.183678,110780.0,110770.0,1.04357742]
[1756836424887,0.186728,110780.0,110770.0,0.61486001]
[1756836425118,0.183678,110780.0,110770.0,0.61486001]
[1756836425320,0.186728,110780.0,110770.0,0.61486001]
[1756836425733,0.186728,110780.0,110770.0,0.61482001]
[1756836426545,0.186728,110780.0,110770.0,0.45526001]
[1756836426778,0.186728,110780.0,110770.0,0.61478001]
[1756836426981,0.00314,110780.0,110770.0,0.61683001]
[1756836427199,0.183678,110780.0,110770.0,0.45731001]
[1756836427402,0.186728,110780.0,110770.0,0.61474001]
[1756836427606,0.186728,110780.0,110770.0,0.45526001]
[1756836427788,0.186728,110780.0,110770.0,0.43432119]
[1756836428015,0.64030541,110780.0,110770.0,0.40408326]
[1756836428221,0.64030541,110780.0,110770.0,0.35541245]
[1756836428395,0.64030541,110780.0,110770.0,0.37970763]
[1756836428640,0.211588,110780.0,110770.0,0.37970763]
[1756836428848,0.211588,110780.0,110770.0,0.22022763]
[1756836429049,0.64030541,110780.0,110770.0,0.37966763]
[1756836429252,0.64030541,110780.0,110770.0,0.32011767]
[1756836429464,0.211588,110780.0,110770.0,0.32003767]
[1756836429666,0.64030541,110780.0,110770.0,0.32003767]
[1756836430080,0.211588,110780.0,110770.0,0.32003767]
[1756836430516,0.64030541,110780.0,110770.0,0.32003767]
[1756836430739,0.211588,110780.0,110770.0,0.32003767]
[1756836431768,0.64030541,110780.0,110770.0,0.06876168]
[1756836431981,0.64030541,110780.0,110770.0,0.22816168]
[1756836432181,0.64030541,110780.0,110770.0,0.22804168]
[1756836432769,0.64030541,110780.0,110770.0,0.18770171]
[1756836434178,0.64030541,110780.0,110770.0,0.22916416]
[1756836435052,0.211588,110780.0,110770.0,0.22904416]
[1756836435280,0.181538,110780.0,110770.0,0.50682445]
[1756836435514,0.183658,110780.0,110770.0,0.50362445]
[1756836435971,0.186678,110780.0,110770.0,0.32096015]
[1756836436430,0.186678,110780.0,110770.0,0.16180015]
[1756836436659,0.186678,110780.0,110770.0,0.32092015]
[1756836436984,0.61237541,110780.0,110770.0,0.32303015]
[1756836437211,0.183658,110780.0,110770.0,0.50358445]
[1756836437841,0.183658,110780.0,110770.0,0.50678445]
[1756836438048,0.183658,110780.0,110770.0,0.32623015]
[1756836438256,0.183658,110780.0,110770.0,0.50678445]
[1756836438486,0.181538,110780.0,110770.0,0.50678445]
[1756836438667,0.183658,110780.0,110770.0,0.32092015]
[1756836438923,0.186678,110780.0,110770.0,0.32092015]
[1756836442149,0.183658,110780.0,110770.0,0.32303015]
[1756836442396,0.183658,110780.0,110770.0,0.53599787]
[1756836442616,0.001,110780.0,110770.0,1.01322973]
[1756836442837,0.001,110780.0,110770.0,1.32081631]
[1756836444525,0.001,110780.0,110770.0,1.33703992]
[1756836444922,0.00047665,110780.0,110770.0,1.17791992]
[1756836445137,0.00047665,110780.0,110770.0,1.33647992]
[1756836446509,0.00047665,110780.0,110770.0,1.38647992]
[1756836446873,0.00047665,110780.0,110770.0,1.78647992]
[1756836447460,0.00047665,110780.0,110770.0,1.9204655]
[1756836447646,0.00047665,110780.0,110770.0,2.00129609]
[1756836447994,0.07354631,110810.0,110800.0,0.18050541]
[1756836448202,0.07354631,110810.0,110800.0,0.57135982]
[1756836448203,0.07566631,110810.0,110800.0,0.57135982]
[1756836448409,0.25615543,110810.0,110800.0,0.41070351]
[1756836448634,0.25615543,110810.0,110800.0,0.59615257]
[1756836448820,0.18260912,110810.0,110800.0,0.62049018]
[1756836449597,0.00212,110810.0,110800.0,0.62369018]
[1756836449789,0.18260912,110810.0,110800.0,0.62081018]
[1756836450018,0.18460912,110810.0,110800.0,0.62181018]
[1756836450650,0.18460912,110810.0,110800.0,0.59747257]
[1756836450849,0.18248912,110810.0,110800.0,0.59747257]
[1756836451060,0.18460912,110810.0,110800.0,0.60067257]
[1756836451267,0.18460912,110810.0,110800.0,0.60660215]
[1756836451488,0.18460912,110810.0,110800.0,0.63092292]
[1756836451706,0.59875493,110810.0,110800.0,0.28053793]
[1756836451926,1.03403074,110810.0,110800.0,0.12903367]
[1756836452149,1.03403074,110810.0,110800.0,0.001]
[1756836452583,1.03403074,110810.0,110800.0,0.15952]
[1756836453253,1.03403074,110810.0,110800.0,0.15948]
[1756836453734,0.64029169,110810.0,110800.0,0.15948]
[1756836453949,0.64029169,110810.0,110800.0,0.15944]
[1756836454156,0.64029169,110810.0,110800.0,0.001]
[1756836454363,0.64029169,110810.0,110800.0,0.15944]
[1756836454575,0.64029169,110810.0,110800.0,0.001]
[1756836454785,0.73220768,110810.0,110800.0,0.15944]
[1756836455246,0.30369511,110810.0,110800.0,0.15944]
[1756836455475,0.73220768,110810.0,110800.0,0.15944]
[1756836456119,0.30469511,110810.0,110800.0,0.15844]
[1756836456334,0.73120768,110810.0,110800.0,0.15844]
[1756836456540,0.73420768,110810.0,110800.0,0.15944]
[1756836456746,0.21377912,110810.0,110800.0,0.15944]
[1756836456952,0.64129169,110810.0,110800.0,0.15944]
[1756836457367,0.64229169,110810.0,110800.0,0.15944]
[1756836457517,0.64229169,110810.0,110800.0,0.15928]
[1756836461979,0.21377912,110810.0,110800.0,0.15928]
[1756836462119,0.64229169,110810.0,110800.0,0.15928]
[1756836463023,0.64229169,110810.0,110800.0,0.1613]
[1756836463024,0.21377912,110810.0,110800.0,0.1613]
[1756836463208,0.18448912,110810.0,110800.0,0.25615599]
[1756836465725,0.18448912,110810.0,110800.0,0.09787599]
[1756836465932,0.18448912,110810.0,110800.0,0.25571599]
[1756836466672,0.18448912,110810.0,110800.0,0.4362214]
[1756836466872,0.18448912,110810.0,110800.0,0.46054217]
[1756836467072,0.18448912,110810.0,110800.0,0.28003676]
[1756836467824,0.18448912,110810.0,110800.0,0.12219676]
[1756836468032,0.18448912,110810.0,110800.0,0.27983676]
[1756836469493,0.18646912,110810.0,110800.0,0.11925676]
[1756836469694,0.18448912,110810.0,110800.0,0.27983676]
[1756836469975,0.18646912,110810.0,110800.0,0.27677676]
[1756836470177,0.61798169,110810.0,110800.0,0.02532077]
[1756836470391,0.64167169,110810.0,110800.0,0.15876]
[1756836472362,0.64167169,110810.0,110800.0,0.17683]
[1756836472563,0.64167169,110810.0,110800.0,0.15884]
[1756836473287,0.64167169,110810.0,110800.0,0.001]
[1756836473505,0.64167169,110810.0,110800.0,0.15868]
[1756836474669,0.64167169,110810.0,110800.0,0.15852]
[1756836476406,0.63867169,110810.0,110800.0,0.16054]
[1756836476839,0.64167169,110810.0,110800.0,0.15852]
[1756836477053,0.61498169,110810.0,110800.0,0.16279631]
[1756836477264,0.61498169,110810.0,110800.0,0.16348]
[1756836477488,0.61498169,110810.0,110800.0,0.16054]
[1756836478947,0.61798169,110810.0,110800.0,0.001]
[1756836479154,0.61798169,110810.0,110800.0,0.1586]
[1756836479356,0.61498169,110810.0,110800.0,0.16062]
[1756836479557,0.85338369,110810.0,110800.0,0.16062]
[1756836481020,0.85638369,110810.0,110800.0,0.15864]
[1756836481466,0.85638369,110810.0,110800.0,0.001]
[1756836481675,0.85638369,110810.0,110800.0,0.15856]
[1756836482090,0.85638369,110810.0,110800.0,0.001]
[1756836482306,0.85638369,110810.0,110800.0,0.15852]
[1756836482507,0.85338369,110810.0,110800.0,0.16054]
[1756836482740,0.85140369,110810.0,110800.0,0.16348]
[1756836482931,0.85338369,110810.0,110800.0,0.16348]
[1756836483175,0.85638369,110810.0,110800.0,0.15856]
[1756836485043,0.85338369,110810.0,110800.0,0.16058]
[1756836487254,0.85638369,110810.0,110800.0,0.15856]
[1756836487463,0.85638369,110810.0,110800.0,0.001]
[1756836487668,0.85638369,110810.0,110800.0,0.15856]
[1756836488538,0.85638369,110810.0,110800.0,0.001]
[1756836488741,0.87897369,110810.0,110800.0,0.001]
[1756836489172,1.03641369,110810.0,110800.0,0.001]
[1756836490596,0.87597369,110810.0,110800.0,0.00315]
[1756836491043,0.85338369,110810.0,110800.0,0.00315]
[1756836491773,0.85140369,110810.0,110800.0,0.00631]
[1756836492224,0.85336369,110810.0,110800.0,0.00540631]
[1756836492452,0.85655369,110810.0,110800.0,0.15832]
[1756836492904,0.85336369,110810.0,110800.0,0.16047]
[1756836493370,0.85140369,110810.0,110800.0,0.16047]
[1756836493627,0.85140369,110810.0,110800.0,0.16588631]
[1756836494492,0.85140369,110810.0,110800.0,0.16363]
[1756836494721,0.85336369,110810.0,110800.0,0.16047]
[1756836495064,0.85655369,110810.0,110800.0,0.15828]
[1756836495262,0.85655369,110810.0,110800.0,0.001]
[1756836495510,0.69043084,110810.0,110800.0,1e-08]
[1756836495669,1.46825968,110810.0,110800.0,1e-08]
[1756836496919,2.15511307,110810.0,110800.0,1e-08]
[1756836497119,0.180538,110780.0,110770.0,0.00012653]
[1756836497382,0.84920869,110780.0,110770.0,0.00012653]
[1756836497583,1.30710856,110780.0,110770.0,0.00012653]
[1756836498360,1.46494856,110780.0,110770.0,0.00012653]
[1756836498804,1.46494856,110780.0,110770.0,0.00112653]
[1756836498805,1.46794856,110780.0,110770.0,0.00112653]
[1756836498966,1.46994856,110780.0,110770.0,0.00112653]
[1756836499182,1.4788329,110780.0,110770.0,0.00112653]
[1756836501807,1.3209929,110780.0,110770.0,0.00112653]
[1756836502019,1.4788729,110780.0,110770.0,0.00112653]
[1756836502452,0.81195833,110780.0,110770.0,0.00112653]
[1756836502678,1.4788729,110780.0,110770.0,0.00112653]
[1756836503630,0.1805869,110750.0,110740.0,0.00316]
[1756836503861,0.84925759,110750.0,110740.0,0.16139053]
[1756836504096,0.84750147,110750.0,110740.0,0.16354053]
[1756836504364,0.84750147,110750.0,110740.0,0.00578053]
[1756836504632,0.84750147,110750.0,110740.0,0.00803807]
[1756836504883,0.84850147,110750.0,110740.0,0.16650053]
[1756836505132,0.84850147,110750.0,110740.0,0.16750053]
[1756836507628,0.1815869,110750.0,110740.0,0.16750053]
[1756836507845,0.1815869,110750.0,110740.0,0.16975807]
[1756836508055,0.84850147,110750.0,110740.0,0.16975807]
[1756836508257,0.84850147,110750.0,110740.0,0.16750053]
[1756836508474,0.85365147,110750.0,110740.0,0.00447053]
[1756836509134,1.30815746,110750.0,110740.0,0.00447053]
[1756836510424,1.30815746,110750.0,110740.0,0.00347053]
[1756836510634,1.30715746,110750.0,110740.0,0.00047053]
[1756836510850,1.30815746,110750.0,110740.0,0.00047053]
[1756836511062,1.31015746,110750.0,110740.0,0.00147053]
[1756836511288,0.64124289,110750.0,110740.0,0.00047053]
[1756836511508,1.30815746,110750.0,110740.0,0.00047053]
[1756836511737,1.21505147,110750.0,110740.0,0.00362053]
[1756836512166,0.5255869,110750.0,110740.0,0.00678053]
[1756836512378,0.85250147,110750.0,110740.0,0.00678053]
[1756836514444,0.85446147,110750.0,110740.0,0.00678053]
[1756836515082,0.85446147,110750.0,110740.0,0.00147053]
[1756836515310,0.85446147,110750.0,110740.0,0.00362053]
[1756836516004,0.85250147,110750.0,110740.0,0.00678053]
[1756836516400,0.1855869,110750.0,110740.0,0.00678053]
[1756836516785,0.1855869,110750.0,110740.0,0.00903807]
[1756836517170,0.85250147,110750.0,110740.0,0.00903807]
[1756836518341,0.85459147,110750.0,110740.0,0.16807807]
[1756836518962,0.85250147,110750.0,110740.0,0.16807807]
[1756836519399,0.85459147,110750.0,110740.0,0.16491807]
[1756836519612,0.85459147,110750.0,110740.0,0.16254053]
[1756836520263,0.85250147,110750.0,110740.0,0.16793807]
[1756836521435,0.1855869,110750.0,110740.0,0.16793807]
[1756836521871,0.005,110750.0,110740.0,0.44045727]
[1756836522084,0.005,110750.0,110740.0,0.43819973]
[1756836522304,0.005,110750.0,110740.0,0.52277855]
[1756836522518,0.005,110750.0,110740.0,0.86277855]
[1756836522741,0.005,110750.0,110740.0,0.89523776]
[1756836522961,0.005,110750.0,110740.0,1.45192115]
[1756836523180,0.003,110750.0,110740.0,1.61064697]
[1756836523414,0.18055475,110770.0,110750.0,0.18057228]
[1756836523627,0.18055475,110770.0,110760.0,0.43656659]
[1756836524917,0.18155475,110770.0,110760.0,0.12733557]
[1756836525128,0.18155475,110770.0,110760.0,0.46666617]
[1756836525348,0.18155475,110770.0,110760.0,0.28609557]
[1756836525575,0.18155475,110770.0,110760.0,0.28597557]
[1756836526481,0.001,110770.0,110760.0,0.46654617]
[1756836526712,0.001,110770.0,110760.0,0.82848499]
[1756836526933,0.001,110770.0,110760.0,1.52779472]
[1756836527594,0.1815543,110770.0,110760.0,0.68026955]
[1756836527810,0.1815543,110770.0,110760.0,0.82844499]
[1756836528666,0.1815543,110770.0,110760.0,0.66984499]
[1756836528879,0.1815543,110770.0,110760.0,0.82840499]
[1756836529710,0.001,110770.0,110760.0,0.82840499]
[1756836531510,0.1815543,110770.0,110760.0,0.82840499]
[1756836531922,0.1815543,110770.0,110760.0,0.66984499]
[1756836532333,0.1815543,110770.0,110760.0,0.82812499]
[1756836532539,0.1815543,110770.0,110760.0,0.82808499]
[1756836534014,0.1815543,110770.0,110760.0,0.66984499]
[1756836534231,0.1815543,110770.0,110760.0,0.82808499]
[1756836534938,0.1867843,110770.0,110760.0,0.28129557]
[1756836535382,0.1815543,110770.0,110760.0,0.46714617]
[1756836535828,0.1836443,110770.0,110760.0,0.28343557]
[1756836536028,0.1867843,110770.0,110760.0,0.12305557]
[1756836536235,0.1867843,110770.0,110760.0,0.25411599]
[1756836536638,0.1836443,110770.0,110760.0,0.25625599]
[1756836538403,0.1836443,110770.0,110760.0,0.09805599]
[1756836538718,0.1836443,110770.0,110760.0,0.25625599]
[1756836539152,0.001,110770.0,110760.0,0.43996659]
[1756836539364,0.1815543,110770.0,110760.0,0.43996659]
[1756836539555,0.1815543,110770.0,110760.0,0.46710514]
[1756836540734,0.1836443,110770.0,110760.0,0.12519454]
[1756836540961,0.1867843,110770.0,110760.0,0.28109454]
[1756836541164,0.85369887,110770.0,110760.0,0.12305454]
[1756836541364,0.87838887,110770.0,110760.0,0.03113855]
[1756836541569,0.87838887,110770.0,110760.0,0.18917855]
[1756836541570,0.64028216,110770.0,110760.0,0.18917855]
[1756836541775,0.64028216,110770.0,110760.0,0.16204]
[1756836542606,0.64028216,110770.0,110760.0,0.1622]
[1756836544122,0.2114743,110770.0,110760.0,0.1622]
[1756836544350,0.64028216,110770.0,110760.0,0.1622]
[1756836544558,0.64028216,110770.0,110760.0,0.004]
[1756836544771,0.64028216,110770.0,110760.0,0.16212]
[1756836545512,0.2114743,110770.0,110760.0,0.16212]
[1756836545652,0.64028216,110770.0,110760.0,0.16212]
[1756836546082,0.64028216,110770.0,110760.0,0.004]
[1756836546289,0.64028216,110770.0,110760.0,0.16204]
[1756836547345,0.63928216,110770.0,110760.0,0.15904]
[1756836547572,1.03373362,110770.0,110760.0,0.15904]
[1756836547781,1.03573362,110770.0,110760.0,0.002]
[1756836547988,0.1805869,110750.0,110740.0,0.13531006]
[1756836548205,0.59221656,110750.0,110740.0,0.38538605]
[1756836548412,0.59221656,110750.0,110740.0,0.22932605]
[1756836548689,0.59429656,110750.0,110740.0,0.22932605]
[1756836548889,0.1856669,110750.0,110740.0,0.26322689]
[1756836549092,0.59729656,110750.0,110740.0,0.26322689]
[1756836549307,1.00892622,110750.0,110740.0,0.10502689]
[1756836549522,1.00892622,110750.0,110740.0,0.22231053]
[1756836549723,0.59729656,110750.0,110740.0,0.22231053]
[1756836549932,1.03303622,110750.0,110740.0,0.00147053]
[1756836550156,1.78466588,110750.0,110740.0,0.00147053]
[1756836550370,1.87758187,110750.0,110740.0,0.00547053]
[1756836550590,1.46595221,110750.0,110740.0,0.00547053]
[1756836551051,1.46595221,110750.0,110740.0,0.00447053]
[1756836551258,1.46495221,110750.0,110740.0,0.00047053]
[1756836551474,0.18060321,110740.0,110720.0,0.0004]
[1756836551686,0.18060321,110740.0,110720.0,0.15884]
[1756836551687,0.61155634,110730.0,110720.0,0.15884]
[1756836551893,0.18569952,110730.0,110720.0,0.15884]
[1756836552113,0.61488022,110730.0,110720.0,0.15884]
[1756836552339,0.18569952,110730.0,110720.0,0.0004]
[1756836552549,0.61488022,110730.0,110720.0,0.0004]
[1756836552968,0.18569952,110730.0,110720.0,0.0004]
[1756836553171,0.61488022,110730.0,110720.0,0.0014]
[1756836553375,0.61188022,110730.0,110720.0,0.0035]
[1756836553594,0.61188022,110730.0,110720.0,0.0025]
[1756836553795,0.18269952,110730.0,110720.0,0.0025]
[1756836554007,0.18161952,110730.0,110720.0,0.00863]
[1756836554212,0.18369952,110730.0,110720.0,0.0055]
[1756836554420,0.61288022,110730.0,110720.0,0.0055]
[1756836554831,0.61388022,110730.0,110720.0,0.0055]
[1756836555056,0.18469952,110730.0,110720.0,0.0055]
[1756836555262,0.61388022,110730.0,110720.0,0.0055]
[1756836555465,0.61688022,110730.0,110720.0,0.0034]
[1756836555672,0.61688022,110730.0,110720.0,0.16276]
[1756836557503,0.61388022,110730.0,110720.0,0.16486]
[1756836557722,0.61688022,110730.0,110720.0,0.16276]
[1756836558125,0.61688022,110730.0,110720.0,0.16272]
[1756836558393,0.61388022,110730.0,110720.0,0.0055]
[1756836558613,0.61688022,110730.0,110720.0,0.16268]
[1756836560345,0.61388022,110730.0,110720.0,0.16478]
[1756836560567,0.18769952,110730.0,110720.0,0.16268]
[1756836560782,0.61688022,110730.0,110720.0,0.16268]
[1756836561253,0.18769952,110730.0,110720.0,0.16268]
[1756836561472,0.61688022,110730.0,110720.0,0.16244]
[1756836564200,0.18769952,110730.0,110720.0,0.16244]
[1756836564428,0.61688022,110730.0,110720.0,0.16244]
[1756836564642,0.18769952,110730.0,110720.0,0.16244]
[1756836564874,0.61688022,110730.0,110720.0,0.16244]
[1756836567362,0.18261952,110730.0,110720.0,0.25958599]
[1756836567651,0.18261952,110730.0,110720.0,0.10054599]
[1756836567878,0.18261952,110730.0,110720.0,0.25926599]
[1756836569169,0.61388022,110730.0,110720.0,0.25926599]
[1756836569384,0.18469952,110730.0,110720.0,0.25926599]
[1756836569623,0.61688022,110730.0,110720.0,0.16204]
[1756836570068,0.61388022,110730.0,110720.0,0.16414]
[1756836570692,0.61388022,110730.0,110720.0,0.162]
[1756836570899,0.61688022,110730.0,110720.0,0.162]
[1756836571307,0.18769952,110730.0,110720.0,0.162]
[1756836571742,0.61688022,110730.0,110720.0,0.162]
[1756836571991,0.61688022,110730.0,110720.0,0.0034]
[1756836572498,0.64099022,110730.0,110720.0,0.16196]
[1756836574811,0.21180952,110730.0,110720.0,0.16406]
[1756836575058,0.61180022,110730.0,110720.0,0.16719]
[1756836575542,0.61388022,110730.0,110720.0,0.16406]
[1756836576457,0.61180022,110730.0,110720.0,0.16719]
[1756836577648,0.61180022,110730.0,110720.0,0.16944794]
[1756836578126,0.61180022,110730.0,110720.0,0.16719]
[1756836578337,0.18261952,110730.0,110720.0,0.16719]
[1756836579058,0.18261952,110730.0,110720.0,0.25910599]
[1756836579297,0.002,110730.0,110720.0,0.43974182]
[1756836579727,0.18261952,110730.0,110720.0,0.46689076]
[1756836580173,0.002,110730.0,110720.0,0.46689076]
[1756836580350,0.002,110730.0,110720.0,0.90904207]
[1756836580816,0.002,110730.0,110720.0,0.75048207]
[1756836581027,0.002,110730.0,110720.0,0.90872207]
[1756836581228,0.001,110730.0,110720.0,0.90570718]
[1756836581663,0.001,110730.0,110720.0,0.90670718]
[1756836581664,0.003,110730.0,110720.0,0.90670718]
[1756836581869,0.001,110730.0,110720.0,0.90570718]
[1756836582075,0.18060459,110740.0,110730.0,0.18061952]
[1756836582292,0.18060459,110740.0,110730.0,0.33817551]
[1756836582514,0.18060459,110740.0,110730.0,0.34140551]
[1756836582972,0.61926498,110750.0,110730.0,0.34140551]
[1756836583212,0.18105494,110750.0,110740.0,0.43612674]
[1756836583419,0.18105494,110750.0,110740.0,0.4358292]
[1756836584067,0.18105494,110750.0,110740.0,0.09710599]
[1756836584281,0.18105494,110750.0,110740.0,0.29754695]
[1756836584494,0.18105494,110750.0,110740.0,0.29528941]
[1756836584779,0.18205494,110750.0,110740.0,0.13800941]
[1756836585008,0.18205494,110750.0,110740.0,0.001]
[1756836585009,0.61643564,110750.0,110740.0,0.001]
[1756836585423,0.63920564,110750.0,110740.0,0.1592]
[1756836586256,0.21002494,110750.0,110740.0,0.1592]
[1756836586463,0.63920564,110750.0,110740.0,0.1592]
[1756836587348,0.21002494,110750.0,110740.0,0.15908]
[1756836587560,0.63615564,110750.0,110740.0,0.16104]
[1756836587773,0.63920564,110750.0,110740.0,0.15908]
[1756836590955,0.63920564,110750.0,110740.0,0.16148]
[1756836590956,0.20697494,110750.0,110740.0,0.16148]
[1756836591168,0.63920564,110750.0,110740.0,0.16148]
[1756836591381,0.61123564,110750.0,110740.0,0.16148]
[1756836591607,0.18205494,110750.0,110740.0,0.16696754]
[1756836591825,0.18205494,110750.0,110740.0,0.00844754]
[1756836592010,0.18420494,110750.0,110740.0,0.16760754]
[1756836592155,0.18205494,110750.0,110740.0,0.16760754]
[1756836592365,0.18420494,110750.0,110740.0,0.16437754]
[1756836592798,0.61338564,110750.0,110740.0,0.16437754]
[1756836593050,0.18205494,110750.0,110740.0,0.16760754]
[1756836593255,0.18420494,110750.0,110740.0,0.16760754]
[1756836595338,0.18420494,110750.0,110740.0,0.19475392]
[1756836595558,0.18420494,110750.0,110740.0,0.19249638]
[1756836595969,0.18420494,110750.0,110740.0,0.03333638]
[1756836596173,0.18420494,110750.0,110740.0,0.19459392]
[1756836596389,0.18420494,110750.0,110740.0,0.03333638]
[1756836596603,0.61338564,110750.0,110740.0,0.19124392]
[1756836596824,0.61643564,110750.0,110740.0,0.18702638]
[1756836597153,0.61338564,110750.0,110740.0,0.18898638]
[1756836597571,0.18725494,110750.0,110740.0,0.18898638]
[1756836597771,0.61643564,110750.0,110740.0,0.18898638]
[1756836598455,0.61338564,110750.0,110740.0,0.18898638]
[1756836598665,0.18420494,110750.0,110740.0,0.37281959]
[1756836598902,0.18420494,110750.0,110740.0,0.19221638]
[1756836599123,0.18420494,110750.0,110740.0,0.03333638]
[1756836599369,0.18420494,110750.0,110740.0,0.19108392]
[1756836599602,0.00146804,110750.0,110740.0,0.86555569]
[1756836599823,0.18205494,110750.0,110740.0,0.45389626]
[1756836600387,0.18205494,110750.0,110740.0,0.14385183]
[1756836600388,0.59586437,110750.0,110740.0,0.14385183]
[1756836600624,0.59586437,110750.0,110740.0,0.48309504]
[1756836600920,0.59586437,110750.0,110740.0,0.04997584]
[1756836601131,1.0333438,110750.0,110740.0,0.1586]
[1756836601555,0.21002494,110750.0,110740.0,0.1586]
[1756836601810,0.20697494,110750.0,110740.0,0.16056]
[1756836602027,0.20697494,110750.0,110740.0,0.16604754]
[1756836602028,0.18205494,110750.0,110740.0,0.16604754]
[1756836602252,0.59586437,110750.0,110740.0,0.00421754]
[1756836602471,0.59891437,110750.0,110740.0,0.15872]
[1756836602697,0.18060321,110740.0,110730.0,0.16624662]
[1756836602936,0.18235933,110740.0,110730.0,0.38122383]
[1756836603152,0.18235933,110740.0,110730.0,0.56703335]
[1756836603381,0.18060321,110740.0,110730.0,1.01120156]
[1756836603623,0.18105494,110750.0,110730.0,1.0111283]
[1756836603818,0.18105494,110750.0,110740.0,0.18383321]
[1756836604097,0.18105494,110750.0,110740.0,0.68929537]
[1756836604325,0.18105494,110750.0,110740.0,0.12961477]
[1756836604547,0.18625494,110750.0,110740.0,0.12442477]
[1756836604758,0.18625494,110750.0,110740.0,0.25075599]
[1756836605063,0.18520494,110750.0,110740.0,0.25371599]
[1756836605265,0.18520494,110750.0,110740.0,0.4375492]
[1756836605266,0.18305494,110750.0,110740.0,0.4375492]
[1756836605560,0.18105494,110750.0,110740.0,0.46905798]
[1756836605765,0.18305494,110750.0,110740.0,0.47005798]
[1756836605921,0.18305494,110750.0,110740.0,0.28945477]
[1756836606121,0.18305494,110750.0,110740.0,0.47005798]
[1756836607149,0.18520494,110750.0,110740.0,0.28614477]
[1756836607573,0.18305494,110750.0,110740.0,0.46997798]
[1756836608350,0.18520494,110750.0,110740.0,0.28614477]
[1756836608554,0.18820494,110750.0,110740.0,0.28418477]
[1756836608758,0.18820494,110750.0,110740.0,0.28410477]
[1756836609804,0.18820494,110750.0,110740.0,0.46684798]
[1756836610011,0.18820494,110750.0,110740.0,0.46678507]
[1756836610220,0.18820494,110750.0,110740.0,0.49393003]
[1756836610673,0.18305494,110750.0,110740.0,0.49700003]
[1756836610884,0.18305494,110750.0,110740.0,0.9085862]
[1756836611100,0.18821494,110750.0,110740.0,0.15250682]
[1756836611318,0.18821494,110750.0,110740.0,0.31134682]
[1756836611741,0.18521494,110750.0,110740.0,0.31348682]
[1756836612004,0.18305494,110750.0,110740.0,0.49716003]
[1756836612217,0.18521494,110750.0,110740.0,0.31348682]
[1756836612438,0.18521494,110750.0,110740.0,0.49409003]
[1756836612666,0.18521494,110750.0,110740.0,0.21961374]
[1756836612667,0.59980111,110750.0,110740.0,0.21961374]
[1756836612889,0.59980111,110750.0,110740.0,0.18710496]
[1756836613107,0.62376111,110750.0,110740.0,0.02814496]
[1756836613337,0.62376111,110750.0,110740.0,0.18714496]
[1756836613553,0.21217494,110750.0,110740.0,0.16]
[1756836613769,0.62376111,110750.0,110740.0,0.16]
[1756836613986,0.62176111,110750.0,110740.0,0.159]
[1756836614201,0.62276111,110750.0,110740.0,0.159]
[1756836614418,0.18060321,110740.0,110730.0,0.06368]
[1756836614630,0.18235933,110740.0,110730.0,0.22268]
[1756836614836,0.18751933,110740.0,110730.0,0.22268]
[1756836615051,0.18576321,110740.0,110730.0,0.22268]
[1756836615262,0.18576321,110740.0,110730.0,0.22482]
[1756836615263,0.18276321,110740.0,110730.0,0.22482]
[1756836615475,0.18276321,110740.0,110730.0,0.22268]
[1756836615687,0.18576321,110740.0,110730.0,0.22268]
[1756836617238,0.18776321,110740.0,110730.0,0.22468]
[1756836617739,0.18260321,110740.0,110730.0,0.22989]
[1756836618124,0.18476321,110740.0,110730.0,0.22989]
[1756836618373,0.18476321,110740.0,110730.0,0.22682]
[1756836618931,0.18260321,110740.0,110730.0,0.50242551]
[1756836619144,0.002,110740.0,110730.0,1.19092379]
[1756836619353,0.002,110740.0,110730.0,1.23961261]
[1756836619807,0.002,110740.0,110730.0,1.57961261]
[1756836620907,0.001,110740.0,110730.0,1.57961261]
[1756836621117,0.18105494,110750.0,110740.0,0.18060321]
[1756836621329,0.18105494,110750.0,110740.0,0.9444762]
[1756836621544,0.18105494,110750.0,110740.0,0.94528866]
[1756836621757,0.00046804,110750.0,110740.0,0.94528866]
[1756836621970,0.00046804,110750.0,110740.0,0.96622748]
[1756836622833,0.18105494,110750.0,110740.0,0.09712599]
[1756836623040,0.18621494,110750.0,110740.0,0.27885852]
[1756836623222,0.18621494,110750.0,110740.0,0.02814253]
[1756836623469,0.18621494,110750.0,110740.0,0.18694253]
[1756836623894,0.18721494,110750.0,110740.0,0.18794253]
[1756836624107,0.18421494,110750.0,110740.0,0.18794253]
[1756836624319,0.18205494,110750.0,110740.0,0.19315253]
[1756836624534,0.18205494,110750.0,110740.0,0.46567173]
[1756836624826,0.18205494,110750.0,110740.0,1.13323119]
[1756836625042,0.18205494,110750.0,110740.0,0.97443119]
[1756836625256,0.18205494,110750.0,110740.0,0.46559173]